bitfinex-derivatives/quotes_SOLF0:USTF0_20250808
["timestamp","ask_amount","ask_price","bid_price","bid_amount"]
[1754631950456,3.25,174.7,174.68,3.34]
[1754631950651,105.99698019,174.71,174.68,3.34]
[1754631950652,5.32698019,174.69,174.68,3.34]
[1754631951054,3.25,174.68,174.65,3.34]
[1754631951253,5.32698019,174.66,174.65,3.34]
[1754631951958,2.07698019,174.66,174.65,3.34]
[1754631952957,2.07698019,174.66,174.65,9.0648]
[1754631954759,3.25,174.67,174.65,9.0648]
[1754631954959,2.07698019,174.67,174.66,3.34]
[1754631955760,2.07698019,174.67,174.66,9.0645]
[1754631955958,3.25,174.69,174.66,3.34]
[1754631956159,2.07698019,174.68,174.66,3.34]
[1754631956354,2.07698019,174.68,174.66,5.7243]
[1754631956556,3.25,174.69,174.67,3.34]
[1754631956755,2.07698019,174.68,174.67,3.34]
[1754631957055,3.25,174.69,174.67,3.34]
[1754631957256,2.07698019,174.68,174.67,3.34]
[1754631957449,5.32698019,174.68,174.67,3.34]
[1754631958564,3.25,174.67,174.66,3.34]
[1754631958758,5.32698019,174.67,174.66,3.34]
[1754631958961,3.25,174.66,174.63,3.34]
[1754631959159,3.25,174.64,174.63,3.34]
[1754631959861,5.32698019,174.65,174.63,3.34]
[1754631961660,5.32698019,174.65,174.62,3.34]
[1754631961661,3.25,174.63,174.62,3.34]
[1754631961861,5.32698019,174.63,174.62,3.34]
[1754631962261,5.17698019,174.63,174.62,3.34]
[1754631966664,2.07698019,174.63,174.62,3.34]
[1754631969064,5.17698019,174.63,174.62,3.34]
[1754631976266,2.07698019,174.63,174.62,3.34]
[1754631977869,2.07698019,174.64,174.62,3.34]
[1754631979062,5.17698019,174.64,174.62,3.34]
[1754631979469,10.90218019,174.64,174.62,3.34]
[1754631979670,3.1,174.63,174.62,3.34]
[1754631980670,10.90218019,174.64,174.62,3.34]
[1754631985381,8.8252,174.64,174.62,3.34]
[1754631985579,2.07698019,174.63,174.59,7.80368019]
[1754631986183,2.07698019,174.63,174.6,3.19]
[1754631986681,5.17698019,174.63,174.6,3.19]
[1754631987885,10.90248019,174.63,174.6,3.19]
[1754631989582,3.1,174.6,174.54,3.19]
[1754631989886,2.07698019,174.57,174.54,3.19]
[1754631990185,2.07698019,174.57,174.54,5.7282]
[1754631990390,2.07698019,174.57,174.55,3.19]
[1754631993690,11.06418019,174.58,174.55,3.19]
[1754631995188,11.06418019,174.58,174.54,5.7282]
[1754631995388,3.26,174.57,174.56,3.18]
[1754631997289,5.33698019,174.57,174.56,3.18]
[1754631997488,5.33698019,174.57,174.51,2.07698019]
[1754631997692,3.26,174.56,174.53,3.18]
[1754631998188,5.33698019,174.57,174.55,3.18]
[1754631998388,2.07698019,174.57,174.55,3.18]
[1754631998890,2.07698019,174.57,174.56,3.18]
[1754631999286,2.07698019,174.6,174.57,5.7273]
[1754631999584,3.26,174.61,174.58,3.18]
[1754631999791,3.26,174.6,174.58,3.18]
[1754632000188,5.33698019,174.6,174.58,3.18]
[1754632000387,3.26,174.59,174.58,3.18]
[1754632002191,3.26,174.58,174.55,3.18]
[1754632002393,5.33698019,174.56,174.52,2.07698019]
[1754632002595,5.33698019,174.56,174.53,5.7287]
[1754632002794,3.26,174.56,174.53,5.7287]
[1754632003095,3.26,174.56,174.54,3.18]
[1754632003395,3.26,174.56,174.54,8.9084]
[1754632003598,3.26,174.56,174.55,3.18]
[1754632004597,3.25005401,174.58,174.48,3.18]
[1754632004792,3.26,174.57,174.48,6.43005401]
[1754632005294,8.9875,174.57,174.52,5.7288]
[1754632005494,8.9875,174.57,174.53,3.18]
[1754632005495,3.26,174.56,174.53,3.18]
[1754632006297,3.26,174.55,174.53,3.18]
[1754632006500,3.26,174.55,174.49,3.18]
[1754632006797,3.26,174.55,174.5,5.7296]
[1754632006997,3.26,174.54,174.51,3.18]
[1754632007300,3.26,174.54,174.51,8.9094]
[1754632007498,3.26,174.54,174.52,3.18]
[1754632008094,8.9884,174.54,174.52,3.18]
[1754632008294,3.26,174.53,174.52,3.18]
[1754632011602,8.9887,174.53,174.52,3.18]
[1754632012299,3.26,174.53,174.52,3.18]
[1754632014602,3.26,174.54,174.52,3.18]
[1754632017910,8.9884,174.54,174.52,3.18]
[1754632021414,5.7284,174.54,174.52,3.18]
[1754632021603,3.26,174.53,174.52,3.18]
[1754632024316,8.9884,174.54,174.52,3.18]
[1754632024615,11.06896587,174.54,174.52,3.18]
[1754632024915,5.34056587,174.54,174.52,3.18]
[1754632025416,11.06896587,174.54,174.52,3.18]
[1754632025612,11.4505,174.64,174.52,5.7288]
[1754632025817,2.08056587,174.56,174.53,3.3]
[1754632026212,8.9881,174.55,174.53,3.3]
[1754632033421,5.7284,174.54,174.53,3.3]
[1754632033623,8.9884,174.54,174.53,3.3]
[1754632035025,11.06896587,174.54,174.53,3.3]
[1754632035424,2.08056587,174.54,174.46,3.3]
[1754632035724,3.26,174.51,174.48,3.3]
[1754632036425,5.7296,174.51,174.48,9.0301]
[1754632036628,5.7296,174.51,174.49,3.3]
[1754632037127,3.26,174.54,174.49,2.08056587]
[1754632037322,5.34056587,174.54,174.5,3.3]
[1754632037619,5.7291,174.52,174.5,3.3]
[1754632039927,5.7288,174.53,174.5,9.0296]
[1754632040128,5.7288,174.53,174.51,3.3]
[1754632040526,8.9888,174.53,174.51,3.3]
[1754632040828,5.7288,174.53,174.51,3.3]
[1754632042130,5.7288,174.53,174.51,9.0293]
[1754632042430,8.9888,174.53,174.52,3.3]
[1754632046727,5.7288,174.53,174.52,3.3]
[1754632048834,11.06896587,174.54,174.52,3.3]
[1754632050335,3.26,174.53,174.52,3.3]
[1754632051738,5.34056587,174.54,174.52,5.729]
[1754632051939,2.08056587,174.54,174.53,3.29]
[1754632052347,5.34056587,174.54,174.53,3.29]
[1754632052546,11.06896587,174.54,174.53,3.29]
[1754632054349,5.34056587,174.54,174.53,3.29]
[1754632059648,3.07794345,174.57,174.51,2.08056587]
[1754632059852,3.26,174.57,174.54,3.29]
[1754632060347,5.7276,174.57,174.54,3.29]
[1754632060554,3.26,174.56,174.54,3.29]
[1754632061154,8.9878,174.56,174.54,3.29]
[1754632062457,3.26,174.56,174.54,3.29]
[1754632067453,3.26,174.56,174.53,5.7286]
[1754632067658,11.06826587,174.56,174.55,3.29]
[1754632068158,5.34056587,174.56,174.55,3.29]
[1754632072860,3.26,174.56,174.55,3.29]
[1754632073057,5.34056587,174.56,174.55,3.29]
[1754632073263,11.06826587,174.56,174.55,3.29]
[1754632079167,0.99727755,174.6,174.53,3.29]
[1754632079368,3.26,174.53,174.52,3.29]
[1754632079567,5.34056587,174.53,174.52,3.29]
[1754632080170,11.06926587,174.53,174.52,3.29]
[1754632080867,5.34056587,174.53,174.52,3.29]
[1754632081067,2.08056587,174.53,174.52,3.29]
[1754632081470,11.06926587,174.53,174.52,3.29]
[1754632083370,3.07,174.51,174.5,3.08]
[1754632083571,5.15056587,174.51,174.5,3.08]
[1754632084565,10.87986587,174.51,174.5,3.08]
[1754632084869,2.08056587,174.51,174.5,3.08]
[1754632085272,5.15056587,174.51,174.5,3.08]
[1754632085870,2.08056587,174.51,174.5,3.08]
[1754632086172,3.07,174.54,174.5,3.08]
[1754632086371,2.08056587,174.53,174.5,3.08]
[1754632086570,7.80926587,174.53,174.5,3.08]
[1754632086872,10.87926587,174.53,174.5,3.08]
[1754632087172,10.87926587,174.53,174.51,3.08]
[1754632087373,3.07,174.52,174.48,3.08]
[1754632087569,2.08056587,174.5,174.48,3.08]
[1754632087764,3.07,174.49,174.48,3.08]
[1754632088974,5.15056587,174.5,174.48,3.08]
[1754632090264,3.07,174.49,174.46,5.731]
[1754632090475,3.07,174.49,174.45,98.82469318]
[1754632090773,3.07,174.49,174.46,3.08]
[1754632091077,8.8001,174.49,174.46,5.7308]
[1754632091274,8.8001,174.49,174.47,3.08]
[1754632091471,3.07,174.49,174.47,3.08]
[1754632092171,3.07,174.49,174.47,5.7306]
[1754632092478,3.07,174.49,174.48,3.08]
[1754632092775,2.08056587,174.5,174.48,5.7303]
[1754632092976,2.08056587,174.52,174.49,3.08]
[1754632093170,5.15056587,174.52,174.49,3.08]
[1754632093374,10.87966587,174.52,174.49,8.8098]
[1754632093574,3.07,174.54,174.5,3.08]
[1754632093774,2.08056587,174.55,174.51,3.08]
[1754632093975,3.07,174.57,174.53,3.08]
[1754632094175,2.08056587,174.56,174.53,3.08]
[1754632094879,8.7977,174.57,174.53,8.8086]
[1754632095079,5.7277,174.56,174.54,3.08]
[1754632095275,5.15056587,174.57,174.54,3.08]
[1754632095579,2.08056587,174.57,174.54,3.08]
[1754632095779,3.07,174.56,174.54,3.08]
[1754632096582,3.07,174.56,174.54,8.8082]
[1754632096781,3.07,174.56,174.55,3.08]
[1754632096975,3.25000319,174.58,174.55,3.08]
[1754632097279,3.07,174.58,174.55,3.08]
[1754632098184,3.07,174.58,174.55,8.8079]
[1754632098483,3.07,174.58,174.56,3.08]
[1754632099479,3.07,174.58,174.56,8.8076]
[1754632099685,3.07,174.61,174.57,3.08]
[1754632099882,3.07,174.62,174.57,3.08]
[1754632100281,8.796,174.62,174.58,5.7268]
[1754632100482,3.07,174.62,174.59,3.08]
[1754632100782,108.16706644,174.64,174.59,3.08]
[1754632100979,3.07,174.61,174.59,3.08]
[1754632101385,8.7963,174.61,174.59,3.08]
[1754632102084,5.7264,174.6,174.59,3.08]
[1754632102280,3.07,174.59,174.55,3.08]
[1754632102486,3.07,174.59,174.53,3.08]
[1754632102688,5.7272,174.58,174.54,5.7281]
[1754632102986,8.7972,174.58,174.55,3.08]
[1754632103787,8.7972,174.58,174.55,8.808]
[1754632104084,8.7972,174.58,174.56,3.08]
[1754632105186,8.7972,174.58,174.57,3.08]
[1754632106086,3.07,174.6,174.57,3.08]
[1754632106284,3.07,174.61,174.57,3.08]
[1754632106686,5.7269,174.59,174.56,5.7275]
[1754632106886,5.7269,174.59,174.57,3.08]
[1754632107388,5.727,174.58,174.57,3.08]
[1754632108589,5.7269,174.59,174.57,3.08]
[1754632108786,3.07,174.6,174.57,3.08]
[1754632109188,8.7966,174.6,174.57,3.08]
[1754632109584,3.07,174.59,174.57,3.08]
[1754632110178,5.7267,174.59,174.56,3.08]
[1754632110383,3.07,174.58,174.56,3.08]
[1754632114585,3.07,174.58,174.56,8.8077]
[1754632114783,8.9265,174.6,174.57,3.21]
[1754632115190,8.9268,174.59,174.57,3.21]
[1754632115389,3.2,174.58,174.55,5.7279]
[1754632115790,3.2,174.58,174.56,3.21]
[1754632116189,5.7268,174.59,174.55,5.7279]
[1754632116391,3.2,174.57,174.55,5.7279]
[1754632116592,8.9268,174.59,174.55,5.7279]
[1754632116782,3.2,174.58,174.56,3.21]
[1754632117690,8.9271,174.58,174.56,3.21]
[1754632118385,8.9275,174.57,174.53,5.7284]
[1754632118592,3.2,174.59,174.52,3.25000319]
[1754632118891,5.7278,174.56,174.53,5.7285]
[1754632119095,8.9278,174.56,174.54,3.21]
[1754632119385,3.2,174.55,174.53,8.9386]
[1754632119590,3.2,174.55,174.54,3.21]
[1754632119790,8.9278,174.56,174.54,3.21]
[1754632122388,3.2,174.54,174.5,3.25000319]
[1754632122785,5.7293,174.52,174.49,5.7298]
[1754632122995,8.9293,174.52,174.5,3.21]
[1754632124993,3.2,174.52,174.5,3.21]
[1754632125193,8.9288,174.53,174.51,3.21]
[1754632128096,8.9288,174.53,174.51,8.9392]
[1754632128396,8.9288,174.53,174.52,3.21]
[1754632129698,3.2,174.53,174.52,3.21]
[1754632133002,8.9287,174.53,174.52,3.21]
[1754632138599,11.00961616,174.53,174.52,3.21]
[1754632146512,11.00961616,174.53,174.51,3.29]
[1754632146715,5.28091616,174.52,174.51,3.29]
[1754632146910,2.08091616,174.52,174.51,3.29]
[1754632148013,2.08091616,174.52,174.51,9.0193]
[1754632149411,5.729,174.52,174.51,3.29]
[1754632149612,11.00991616,174.52,174.51,3.29]
[1754632150020,5.28091616,174.52,174.51,3.29]
[1754632151315,2.08091616,174.52,174.51,3.29]
[1754632151815,5.28091616,174.52,174.51,3.29]
[1754632152715,2.08091616,174.52,174.51,3.29]
[1754632154317,2.08091616,174.52,174.51,9.0193]
[1754632156718,3.2,174.53,174.51,9.0193]
[1754632156923,3.2,174.55,174.53,3.29]
[1754632157126,2.08091616,174.54,174.53,3.29]
[1754632157318,5.28091616,174.54,174.53,3.29]
[1754632158225,11.00921616,174.54,174.53,3.29]
[1754632161324,5.28091616,174.54,174.47,105.98091616]
[1754632161516,5.28091616,174.5,174.49,3.29]
[1754632162125,11.01071616,174.5,174.49,3.29]
[1754632162427,7.81071616,174.5,174.49,3.29]
[1754632162622,2.08091616,174.51,174.49,3.29]
[1754632163728,2.08091616,174.51,174.49,9.0198]
[1754632163930,7.81001616,174.52,174.5,3.29]
[1754632165332,7.81001616,174.52,174.51,3.29]
[1754632166532,2.08091616,174.52,174.51,3.29]
[1754632166829,5.7288,174.53,174.51,3.29]
[1754632167928,11.00941616,174.54,174.52,3.29]
[1754632168426,8.9285,174.54,174.52,3.29]
[1754632168730,11.00941616,174.54,174.52,3.29]
[1754632169230,11.00941616,174.54,174.52,5.729]
[1754632169430,7.80941616,174.54,174.53,3.29]
[1754632169731,11.00941616,174.54,174.53,3.29]
[1754632175631,8.9285,174.54,174.53,3.29]
[1754632175933,11.00941616,174.54,174.53,3.29]
[1754632176136,7.80941616,174.54,174.53,3.29]
[1754632176334,10.99941616,174.54,174.53,3.29]
[1754632179133,2.08091616,174.54,174.51,3.27]
[1754632179338,3.19,174.53,174.51,3.27]
[1754632180240,8.9189,174.53,174.51,3.27]
[1754632181235,5.7289,174.53,174.51,3.27]
[1754632181440,8.919,174.52,174.51,3.27]
[1754632182341,5.729,174.52,174.51,3.27]
[1754632183847,8.9188,174.53,174.51,3.27]
[1754632184144,5.7288,174.53,174.51,3.27]
[1754632185049,7.80941616,174.54,174.52,3.27]
[1754632185247,2.08091616,174.56,174.52,3.27]
[1754632185441,3.19,174.63,174.52,3.27]
[1754632185644,7.80881616,174.56,174.54,3.27]
[1754632185946,5.7279,174.56,174.54,3.27]
[1754632186147,5.7275,174.57,174.55,3.27]
[1754632186344,3.19,174.6,174.55,5.35091616]
[1754632186540,5.7261,174.61,174.58,8.997]
[1754632186741,5.7261,174.61,174.58,5.727]
[1754632186942,5.7261,174.61,174.6,3.27]
[1754632187343,10.99701616,174.61,174.6,3.27]
[1754632188049,7.80701616,174.61,174.6,3.27]
[1754632188652,5.7261,174.61,174.6,3.27]
[1754632190349,5.7258,174.62,174.6,3.27]
[1754632191252,5.726,174.61,174.6,3.27]
[1754632193354,3.19,174.6,174.53,3.27]
[1754632193650,3.24795645,174.55,174.48,3.27]
[1754632193854,5.7289,174.53,174.48,3.27]
[1754632194052,8.9189,174.53,174.48,3.27]
[1754632194250,8.9189,174.53,174.49,5.7297]
[1754632194455,12.16685645,174.53,174.5,3.27]
[1754632194855,8.97685645,174.53,174.5,3.27]
[1754632195054,5.7284,174.54,174.5,3.27]
[1754632195457,5.7278,174.56,174.53,3.27]
[1754632196752,5.7278,174.56,174.54,3.27]
[1754632202179,8.97545645,174.57,174.54,3.27]
[1754632202351,3.23,174.6,174.53,3.24795645]
[1754632202555,3.23,174.6,174.54,3.1]
[1754632202755,3.23,174.63,174.58,5.7268]
[1754632203058,3.23,174.63,174.59,3.1]
[1754632203260,5.7259,174.62,174.59,3.1]
[1754632203764,3.24795645,174.64,174.59,3.1]
[1754632203962,3.23,174.61,174.57,3.1]
[1754632204273,3.23,174.58,174.57,3.1]
[1754632204963,8.9567,174.59,174.57,3.1]
[1754632205163,5.7267,174.59,174.57,3.1]
[1754632205359,5.727,174.58,174.57,3.1]
[1754632205960,5.7268,174.59,174.57,3.1]
[1754632206265,3.24795645,174.6,174.57,3.1]
[1754632206462,6.47795645,174.6,174.57,3.1]
[1754632206765,3.23,174.59,174.57,3.1]
[1754632207064,3.23,174.59,174.52,3.1]
[1754632207260,3.24795645,174.58,174.52,3.1]
[1754632207460,3.23,174.57,174.52,3.1]
[1754632207769,3.23,174.56,174.53,3.1]
[1754632208767,5.7282,174.55,174.53,3.1]
[1754632213072,8.9582,174.55,174.53,3.1]
[1754632215578,8.9582,174.55,174.53,8.8287]
[1754632215872,8.9582,174.55,174.54,3.1]
[1754632216574,8.9578,174.56,174.54,3.1]
[1754632219677,5.728,174.55,174.54,3.1]
[1754632223082,5.7278,174.56,174.54,8.8283]
[1754632223475,5.7278,174.56,174.55,3.1]
[1754632224079,5.7274,174.57,174.55,3.1]
[1754632224381,3.24795645,174.58,174.55,3.1]
[1754632224382,6.47795645,174.58,174.55,3.1]
[1754632224580,6.47795645,174.58,174.55,8.8278]
[1754632224779,12.20495645,174.58,174.57,3.1]
[1754632229686,8.957,174.58,174.57,3.1]
[1754632231186,5.727,174.58,174.57,3.1]
[1754632237987,8.777,174.58,174.57,3.1]
[1754632240995,5.727,174.58,174.57,3.1]
[1754632241187,5.7265,174.6,174.57,8.8274]
[1754632241492,3.05,174.6,174.58,3.07]
[1754632241689,115.3896,174.65,174.58,3.07]
[1754632241895,5.727,174.59,174.56,5.7275]
[1754632242095,8.777,174.59,174.56,5.7275]
[1754632242299,8.777,174.59,174.57,3.07]
[1754632244796,5.727,174.58,174.56,5.7275]
[1754632245295,5.727,174.58,174.57,3.07]
[1754632254504,2.07931288,174.58,174.48,103.88]
[1754632254801,3.05,174.55,174.53,3.07]
[1754632255001,3.05,174.55,174.53,5.7286]
[1754632255201,3.05,174.55,174.54,3.07]
[1754632255803,5.7282,174.55,174.54,3.07]
[1754632256605,10.85711288,174.56,174.54,3.07]
[1754632256905,10.85711288,174.56,174.54,5.7284]
[1754632257107,10.85711288,174.56,174.55,3.07]
[1754632258104,7.80711288,174.56,174.55,3.07]
[1754632258702,2.07931288,174.58,174.54,2.07931288]
[1754632258901,3.05,174.59,174.56,3.07]
[1754632259110,5.12931288,174.6,174.57,3.07]
[1754632259802,2.07931288,174.62,174.58,5.727]
[1754632260007,3.05,174.61,174.59,3.07]
[1754632260203,2.07931288,174.62,174.59,3.07]
[1754632260401,384.98,174.68,174.62,3.07]
[1754632260705,3.05,174.65,174.62,3.07]
[1754632261108,3.05,174.67,174.62,3.07]
[1754632261408,8.7754,174.63,174.62,3.07]
[1754632261606,3.24634919,174.66,174.6,3.07]
[1754632261798,3.08,174.62,174.57,3.24634919]
[1754632262103,0.99673483,174.69,174.56,3.13]
[1754632262104,3.08,174.61,174.56,3.13]
[1754632262506,8.8074,174.57,174.56,3.13]
[1754632262806,8.8074,174.57,174.51,107.12634919]
[1754632262807,3.08,174.57,174.55,3.13]
[1754632263207,5.7279,174.56,174.55,3.13]
[1754632263506,8.8079,174.56,174.55,3.13]
[1754632273813,5.7279,174.56,174.55,3.13]
[1754632275318,8.8079,174.56,174.55,3.13]
[1754632278114,5.7279,174.56,174.55,3.13]
[1754632280822,8.8079,174.56,174.55,3.13]
[1754632282627,10.88784915,174.56,174.55,3.13]
[1754632282925,7.80784915,174.56,174.55,3.13]
[1754632283627,2.07994915,174.59,174.56,5.7274]
[1754632283827,2.07994915,174.59,174.57,3.13]
[1754632284230,5.7269,174.59,174.57,8.8574]
[1754632284429,7.80684915,174.59,174.58,3.13]
[1754632284830,10.88684915,174.59,174.58,3.13]
[1754632286131,8.8076,174.57,174.56,3.13]
[1754632286428,10.88754915,174.57,174.56,3.13]
[1754632287133,3.08,174.55,174.53,3.13]
[1754632287329,2.07994915,174.55,174.53,3.13]
[1754632287726,2.07994915,174.55,174.53,5.7285]
[1754632288032,5.728,174.56,174.54,3.13]
[1754632288230,7.80754915,174.57,174.54,8.858]
[1754632288628,7.80754915,174.57,174.55,3.13]
[1754632288828,8.8077,174.56,174.55,3.13]
[1754632289432,5.7277,174.56,174.55,3.13]
[1754632290032,10.88734915,174.57,174.55,3.13]
[1754632290830,7.80734915,174.57,174.55,3.13]
[1754632291532,10.88734915,174.57,174.55,3.13]
[1754632292130,5.7274,174.57,174.55,3.13]
[1754632292635,5.7274,174.57,174.55,5.728]
[1754632292932,5.7274,174.57,174.56,3.18]
[1754632293134,7.80714915,174.58,174.56,3.18]
[1754632294339,11.02714915,174.58,174.56,3.18]
[1754632294631,5.7274,174.57,174.56,3.18]
[1754632294833,5.29994915,174.58,174.56,3.18]
[1754632295235,11.02704915,174.58,174.56,3.18]
[1754632295637,8.9471,174.58,174.56,3.18]
[1754632295941,11.02704915,174.58,174.56,3.18]
[1754632296337,5.7274,174.57,174.56,3.18]
[1754632296538,2.07994915,174.58,174.56,3.18]
[1754632296932,7.80714915,174.58,174.56,3.18]
[1754632297126,2.07994915,174.58,174.56,3.18]
[1754632297340,5.29994915,174.58,174.56,3.18]
[1754632298037,11.02694915,174.58,174.57,3.18]
[1754632306048,5.7276,174.57,174.54,5.7282]
[1754632306248,3.22,174.56,174.54,5.7282]
[1754632306747,8.9477,174.56,174.55,3.18]
[1754632308662,3.22,174.56,174.55,3.18]
[1754632308950,8.9475,174.57,174.55,3.18]
[1754632310949,8.9475,174.57,174.55,8.908]
[1754632311154,5.7275,174.57,174.56,3.18]
[1754632312249,8.9475,174.57,174.56,3.18]
[1754632319252,11.02744915,174.57,174.56,3.18]
[1754632322457,8.9475,174.57,174.56,3.18]
[1754632322663,11.02744915,174.57,174.56,3.18]
[1754632327365,2.07994915,174.57,174.53,3.01]
[1754632327669,3.05,174.53,174.46,3.01]
[1754632327872,2.07994915,174.51,174.47,3.01]
[1754632328067,2.07994915,174.51,174.49,3.01]
[1754632328571,7.80934915,174.51,174.49,3.01]
[1754632329172,10.85934915,174.51,174.49,3.01]
[1754632330072,7.80934915,174.51,174.49,3.01]
[1754632331371,2.07994915,174.51,174.49,8.7399]
[1754632331568,2.07994915,174.51,174.5,3.01]
[1754632331770,7.80904915,174.52,174.5,3.01]
[1754632334275,2.07994915,174.52,174.47,5.08994915]
[1754632334571,3.05,174.51,174.48,3.01]
[1754632335173,5.7297,174.5,174.48,3.01]
[1754632335668,2.07994915,174.5,174.37,11.4679]
[1754632335976,5.7302,174.49,174.47,3.01]
[1754632336375,5.7303,174.48,174.47,3.01]
[1754632337276,5.7301,174.49,174.47,3.01]
[1754632337479,8.7801,174.49,174.47,3.01]
[1754632339074,2.07994915,174.5,174.47,5.7307]
[1754632339275,5.12994915,174.5,174.48,3.01]
[1754632339478,3.05,174.49,174.44,2.07994915]
[1754632339980,5.12994915,174.5,174.45,3.01]
[1754632340176,5.7302,174.49,174.46,5.7308]
[1754632340376,5.7302,174.49,174.47,3.01]
[1754632340873,2.07994915,174.5,174.44,2.07994915]
[1754632341081,7.80944915,174.51,174.48,5.08994915]
[1754632341578,7.80944915,174.51,174.5,3.01]
[1754632342377,10.85944915,174.51,174.5,3.01]
[1754632347885,3.05,174.5,174.48,3.01]
[1754632348178,2.07994915,174.49,174.46,3.01]
[1754632348481,3.05,174.46,174.44,5.7315]
[1754632348684,3.05,174.46,174.45,3.01]
[1754632348880,5.12994915,174.47,174.45,3.01]
[1754632349081,10.86064915,174.47,174.45,3.01]
[1754632349276,3.05,174.49,174.45,3.01]
[1754632349482,2.07994915,174.47,174.45,3.01]
[1754632349681,2.07994915,174.47,174.46,3.01]
[1754632352584,5.7301,174.49,174.47,3.13]
[1754632352983,2.07994915,174.5,174.44,2.07994915]
[1754632353179,2.07994915,174.5,174.45,3.13]
[1754632353383,2.07994915,174.5,174.47,3.13]
[1754632353779,2.07994915,174.5,174.49,3.13]
[1754632353986,2.07994915,174.52,174.49,3.13]
[1754632354186,3.22,174.5,174.47,2.07994915]
[1754632354490,3.22,174.5,174.48,5.7302]
[1754632354686,3.22,174.5,174.49,3.13]
[1754632354990,5.7297,174.51,174.49,8.86]
[1754632355188,8.9497,174.51,174.5,3.13]
[1754632356787,3.22,174.51,174.5,3.13]
[1754632357782,7.80914915,174.52,174.5,3.13]
[1754632357984,11.02914915,174.52,174.5,3.13]
[1754632358184,11.02914915,174.52,174.51,3.13]
[1754632359289,5.7294,174.51,174.49,3.13]
[1754632359485,8.9494,174.51,174.5,3.13]
[1754632364590,8.9491,174.52,174.5,3.13]
[1754632364890,3.22,174.51,174.5,3.13]
[1754632365085,8.9493,174.51,174.5,3.13]
[1754632367187,5.7297,174.5,174.48,3.13]
[1754632367486,3.22,174.51,174.48,3.13]
[1754632367487,2.07994915,174.51,174.48,3.13]
[1754632367683,3.22,174.5,174.48,3.13]
[1754632367990,8.95,174.49,174.48,3.13]
[1754632369788,5.73,174.49,174.48,3.13]
[1754632373996,8.9498,174.5,174.48,3.13]
[1754632374392,5.7298,174.5,174.48,3.13]
[1754632375103,5.7294,174.51,174.48,5.7302]
[1754632375304,5.29994915,174.52,174.49,3.13]
[1754632375504,3.22,174.53,174.49,2.07994915]
[1754632375698,3.22,174.53,174.5,3.13]
[1754632375903,5.7292,174.52,174.5,3.13]
[1754632377808,8.9488,174.53,174.5,8.8596]
[1754632378112,8.9488,174.53,174.51,3.13]
[1754632378708,11.02834915,174.54,174.52,3.13]
[1754632379109,2.07994915,174.54,174.52,3.13]
[1754632379310,3.22,174.53,174.5,3.13]
[1754632379608,3.22,174.52,174.5,3.13]
[1754632380307,5.7289,174.53,174.5,3.13]